fUST/lending_fUST_20240830
["ID","MTS","AMOUNT","RATE_DAILY","PERIOD"]
[336669024,1725006653301,-349.73,0.00039452,120]
[336669025,1725006653310,-500.0,0.00039452,120]
[336669026,1725006653320,-392.2406259,0.00039452,120]
[336669027,1725006653330,-500.0,0.00039452,120]
[336669028,1725006653340,-500.0,0.00039452,120]
[336669029,1725006653349,-500.0,0.00039452,120]
[336669030,1725006653359,-312.51121526,0.00039452,120]
[336669031,1725006653369,-569.15044407,0.00039452,120]
[336669032,1725006653379,-500.0,0.00039452,120]
[336669033,1725006653390,-500.0,0.00039452,120]
[336669034,1725006653400,-500.0,0.00039452,120]
[336669035,1725006653409,-276.73330694,0.00039452,120]
[336669036,1725006653419,-500.0,0.00039452,120]
[336669037,1725006653428,-500.0,0.00039452,120]
[336669038,1725006653438,-500.0,0.00039452,120]
[336669039,1725006653447,-500.0,0.00039452,120]
[336669040,1725006653457,-500.0,0.00039452,120]
[336669041,1725006653466,-151.0,0.00039452,14]
[336669042,1725006653476,-500.0,0.00039452,120]
[336669043,1725006653553,-500.0,0.00039452,120]
[336669044,1725006653563,-500.0,0.00039452,120]
[336669045,1725006653573,-500.0,0.00039452,120]
[336669046,1725006653583,-151.0,0.00039452,14]
[336669047,1725006653593,-500.0,0.00039452,120]
[336669048,1725006653603,-205.156618,0.00039452,14]
[336669049,1725006653613,-205.156618,0.00039452,14]
[336669050,1725006653624,-252.51,0.00039452,120]
[336669051,1725006653637,-1153.93,0.00039452,120]
[336669052,1725006653648,-155.560716,0.00039452,14]
[336669053,1725006653657,-151.0,0.00039452,14]
[336669054,1725006653669,-155.560716,0.00039452,14]
[336669055,1725006653679,-6248.44,0.00039452,8]
[336669056,1725006653689,-500.0,0.00039452,21]
[336669057,1725006653699,-836.76,0.00039452,120]
[336669058,1725006653710,-622.96,0.00039452,120]
[336669059,1725006653722,-510.33263118,0.00039452,120]
[336669060,1725006653741,-500.0,0.00039452,120]
[336669061,1725006653751,-500.0,0.00039452,120]
[336669062,1725006653761,-151.0,0.00039452,14]
[336669063,1725006653772,-500.0,0.00039452,120]
[336669064,1725006653782,-151.0,0.00039452,14]
[336669065,1725006653792,-500.0,0.00039452,120]
[336669066,1725006653802,-500.0,0.00039452,120]
[336669067,1725006653812,-151.0,0.00039452,14]
[336669068,1725006653822,-151.0,0.00039452,14]
[336669069,1725006653832,-500.0,0.00039452,120]
[336669070,1725006653842,-500.0,0.00039452,120]
[336669071,1725006653852,-228.080827,0.00039452,14]
[336669072,1725006653863,-500.0,0.00039452,120]
[336669073,1725006653872,-228.080827,0.00039452,14]
[336669074,1725006653883,-500.0,0.00039452,120]
[336669075,1725006653892,-500.0,0.00039452,120]
[336669076,1725006653902,-504.15819514,0.00039452,120]
[336669077,1725006653912,-500.0,0.00039452,120]
[336669078,1725006653922,-500.0,0.00039452,120]
[336669079,1725006653934,-500.0,0.00039452,120]
[336669080,1725006653944,-151.0,0.00039452,14]
[336669081,1725006653955,-252.10264399,0.00039452,120]
[336669082,1725006653964,-748.578485,0.00039452,14]
[336669083,1725006653976,-500.0,0.00039452,120]
[336669084,1725006653987,-748.578485,0.00039452,14]
[336669085,1725006653997,-500.0,0.00039452,120]
[336669086,1725006654007,-639.53935746,0.00039452,120]
[336669087,1725006654016,-500.0,0.00039452,120]
[336669088,1725006654027,-500.0,0.00039452,120]
[336669089,1725006654038,-500.0,0.00039452,120]
[336669090,1725006654048,-500.0,0.00039452,120]
[336669091,1725006654058,-500.0,0.00039452,120]
[336669092,1725006654068,-500.0,0.00039452,120]
[336669093,1725006654077,-500.0,0.00039452,60]
[336669094,1725006654087,-500.0,0.00039452,120]
[336669095,1725006654097,-500.0,0.00039452,120]
[336669096,1725006654105,-500.0,0.00039452,120]
[336669097,1725006654115,-938.61,0.00039452,120]
[336669098,1725006654124,-1018.82,0.00039452,120]
[336669099,1725006654134,-500.0,0.00039452,120]
[336669100,1725006654143,-500.0,0.00039452,120]
[336669101,1725006654153,-500.0,0.00039452,120]
[336669102,1725006654163,-500.0,0.00039452,120]
[336669103,1725006654172,-500.0,0.00039452,120]
[336669104,1725006654182,-500.0,0.00039452,120]
[336669105,1725006654192,-500.0,0.00039452,120]
[336669106,1725006654202,-500.0,0.00039452,120]
[336669107,1725006654211,-500.0,0.00039452,120]
[336669108,1725006654225,-500.0,0.00039452,120]
[336669109,1725006654235,-2084.52,0.00039452,120]
[336669110,1725006654246,-500.0,0.00039452,120]
[336669111,1725006654256,-173.284743,0.00039452,14]
[336669112,1725006654266,-222.59866188,0.00039452,120]
[336669113,1725006654275,-151.0,0.00039452,14]
[336669114,1725006654285,-500.0,0.00039452,120]
[336669115,1725006654295,-173.284743,0.00039452,14]
[336669116,1725006654305,-500.0,0.00039452,120]
[336669117,1725006654315,-500.0,0.00039452,120]
[336669118,1725006654324,-500.0,0.00039452,120]
[336669119,1725006654334,-500.0,0.00039452,120]
[336669120,1725006654343,-1373.0,0.00039452,120]
[336669121,1725006654354,-19.74907847,0.00039452,120]
[336669122,1725006654368,-470.49647572,0.00039452,120]
[336669123,1725006654401,-279.47451752,0.0002507,3]
[336669125,1725006654414,-7798.65548248,0.0002507,3]
[336669127,1725006654425,-9.75444581,0.00039452,120]
[336669129,1725006654435,-500.0,0.00039452,120]
[336669131,1725006654446,-657.52,0.00039452,120]
[336669133,1725006654456,-1026.36,0.00039452,120]
[336669135,1725006654467,-553.29,0.00039452,120]
[336669137,1725006654485,-500.0,0.00039452,120]
[336669139,1725006654496,-500.0,0.00039452,120]
[336669141,1725006654506,-500.0,0.00039452,120]
[336669143,1725006654517,-500.0,0.00039452,120]
[336669145,1725006654527,-500.0,0.00039452,120]
[336669147,1725006654538,-1762.24,0.00039452,120]
[336669148,1725006654549,-500.0,0.00039452,120]
[336669150,1725006654559,-552.49,0.00039452,120]
[336669152,1725006654570,-500.0,0.00039452,120]
[336669154,1725006654581,-500.0,0.00039452,120]
[336669156,1725006654591,-500.0,0.00039452,120]
[336669158,1725006654602,-500.0,0.00039452,120]
[336669160,1725006654613,-500.0,0.00039452,120]
[336669162,1725006654623,-500.0,0.00039452,120]
[336669164,1725006654636,-245.47441959,0.00039452,120]
[336669166,1725006654646,-600.0,0.00039468,7]
[336669168,1725006654657,-1200.0,0.00039492,7]
[336669170,1725006654667,-151.0,0.00039495,14]
[336669172,1725006654678,-151.0,0.00039495,14]
[336669174,1725006654688,-150.112233,0.000395,7]
[336669176,1725006654698,-1200.0,0.000395,7]
[336669178,1725006654708,-1200.0,0.00039525,7]
[336669180,1725006654719,-700.0,0.00039652,7]
[336669182,1725006654732,-500.69515597,0.00039686,7]
[336669184,1725006654742,-151.0,0.000397,30]
[336669186,1725006654752,-150.0,0.000397,30]
[336669188,1725006654761,-500.0,0.00039726,120]
[336669190,1725006654771,-303.41579405,0.00039726,120]
[336669192,1725006654781,-500.0,0.00039726,120]
[336669194,1725006654791,-301.55009696,0.00039726,120]
[336669196,1725006654800,-331.62675297,0.00039726,120]
[336669198,1725006654810,-500.0,0.00039726,120]
[336669200,1725006654819,-500.0,0.00039726,120]
[336669202,1725006654829,-500.0,0.00039726,120]
[336669204,1725006654839,-500.0,0.00039726,120]
[336669206,1725006654848,-500.0,0.00039726,120]
[336669208,1725006654858,-500.0,0.00039726,120]
[336669210,1725006654869,-166.74,0.00039726,120]
[336669212,1725006654878,-500.0,0.00039726,120]
[336669214,1725006654888,-500.0,0.00039726,120]
[336669216,1725006654898,-500.0,0.00039726,120]
[336669218,1725006654908,-500.0,0.00039726,120]
[336669220,1725006654917,-500.0,0.00039726,120]
[336669222,1725006654927,-500.0,0.00039726,120]
[336669224,1725006654936,-342.91772898,0.00039726,120]
[336669226,1725006654946,-205.156618,0.00039726,14]
[336669228,1725006654956,-205.156618,0.00039726,14]
[336669230,1725006654966,-1153.93,0.00039726,120]
[336669232,1725006654979,-155.560716,0.00039726,14]
[336669234,1725006654989,-151.0,0.00039726,14]
[336669236,1725006654998,-155.560716,0.00039726,14]
[336669238,1725006655009,-2365.93006364,0.00039726,8]
[336669240,1725006655022,-1241.75132697,0.00039726,8]
[336669242,1725006655034,-2640.75860939,0.00039726,8]
[336669251,1725006655102,-500.0,0.00039726,21]
[336669253,1725006655117,-836.76,0.00039726,120]
[336669255,1725006655127,-622.96,0.00039726,120]
[336669257,1725006655137,-344.71093875,0.00039726,120]
[336669259,1725006655149,-155.28906125,0.00039726,120]
[336669261,1725006655158,-500.0,0.00039726,120]
[336669263,1725006655167,-151.0,0.00039726,14]
[336669265,1725006655177,-500.0,0.00039726,120]
[336669267,1725006655186,-151.0,0.00039726,14]
[336669269,1725006655195,-500.0,0.00039726,120]
[336669271,1725006655205,-151.0,0.00039726,14]
[336669273,1725006655215,-151.0,0.00039726,14]
[336669275,1725006655225,-500.0,0.00039726,120]
[336669277,1725006655235,-500.0,0.00039726,120]
[336669279,1725006655245,-228.080827,0.00039726,14]
[336669281,1725006655255,-500.0,0.00039726,120]
[336669283,1725006655266,-228.080827,0.00039726,14]
[336669285,1725006655276,-213.12444987,0.00039726,120]
[336669287,1725006655285,-500.0,0.00039726,120]
[336669289,1725006655295,-500.0,0.00039726,120]
[336669291,1725006655306,-500.0,0.00039726,120]
[336669293,1725006655316,-461.127098,0.00039726,14]
[336669295,1725006655326,-500.0,0.00039726,120]
[336669297,1725006655336,-151.0,0.00039726,14]
[336669299,1725006655347,-461.127098,0.00039726,14]
[336669301,1725006655357,-748.578485,0.00039726,14]
[336669303,1725006655369,-500.0,0.00039726,120]
[336669306,1725006655380,-748.578485,0.00039726,14]
[336669307,1725006655389,-274.12,0.00039726,120]
[336669309,1725006655398,-500.0,0.00039726,120]
[336669311,1725006655408,-500.0,0.00039726,120]
[336669313,1725006655418,-500.0,0.00039726,120]
[336669315,1725006655427,-151.0,0.00039726,14]
[336669317,1725006655437,-500.0,0.00039726,120]
[336669319,1725006655446,-500.0,0.00039726,60]
[336669321,1725006655455,-500.0,0.00039726,120]
[336669323,1725006655464,-500.0,0.00039726,120]
[336669325,1725006655476,-938.61,0.00039726,120]
[336669327,1725006655486,-1018.82,0.00039726,120]
[336669329,1725006655496,-500.0,0.00039726,120]
[336669331,1725006655505,-500.0,0.00039726,120]
[336669333,1725006655515,-500.0,0.00039726,120]
[336669335,1725006655525,-500.0,0.00039726,120]
[336669337,1725006655534,-500.0,0.00039726,120]
[336669339,1725006655546,-500.0,0.00039726,120]
[336669341,1725006655556,-500.0,0.00039726,120]
[336669343,1725006655566,-2084.52,0.00039726,120]
[336669345,1725006655575,-500.0,0.00039726,120]
[336669347,1725006655585,-500.0,0.00039726,120]
[336669349,1725006655595,-500.0,0.00039726,120]
[336669351,1725006655604,-500.0,0.00039726,120]
[336669353,1725006655613,-73.86864635,0.00039726,120]
[336669357,1725006655649,-637.81151042,0.000249,2]
[336669359,1725006655660,-151.0,0.00035,7]
[336669361,1725006655670,-426.13135365,0.00039726,120]
[336669363,1725006655682,-259.504183,0.00039726,14]
[336669365,1725006655692,-500.0,0.00039726,120]
[336669367,1725006655702,-898.95924442,0.00039726,120]
[336669407,1725006656076,-1803.03545318,0.000349,2]
[336669409,1725006656091,-193.803468,0.00035,7]
[336669412,1725006656109,-151.0,0.0003774,7]
[336669415,1725006656123,-151.0,0.00038267,7]
[336669417,1725006656137,-151.0,0.00038356,7]
[336669419,1725006656150,-151.0,0.00038356,7]
[336669422,1725006656162,-500.0,0.00038356,120]
[336669424,1725006656174,-500.0,0.00038356,120]
[336669426,1725006656187,-500.0,0.00038356,120]
[336669429,1725006656200,-500.0,0.00038356,120]
[336669431,1725006656213,-500.0,0.00038356,120]
[336669434,1725006656229,-151.0,0.0003853,14]
[336669436,1725006656241,-500.0,0.0003863,120]
[336669438,1725006656254,-151.0,0.0003863,14]
[336669441,1725006656267,-500.0,0.0003863,120]
[336669443,1725006656283,-151.0,0.00038904,14]
[336669446,1725006656297,-151.0,0.00038904,14]
[336669448,1725006656307,-474.04075558,0.00039726,120]
[336669450,1725006656318,-500.0,0.00039726,120]
[336669452,1725006656328,-259.504183,0.00039726,14]
[336669454,1725006656338,-500.0,0.00039726,120]
[336669456,1725006656348,-657.52,0.00039726,120]
[336669458,1725006656358,-1026.36,0.00039726,120]
[336669460,1725006656368,-553.29,0.00039726,120]
[336669462,1725006656377,-500.0,0.00039726,120]
[336669464,1725006656387,-500.0,0.00039726,120]
[336669466,1725006656396,-500.0,0.00039726,120]
[336669468,1725006656405,-500.0,0.00039726,120]
[336669470,1725006656415,-500.0,0.00039726,120]
[336669472,1725006656424,-1762.24,0.00039726,120]
[336669474,1725006656433,-534.47,0.00039726,120]
[336669476,1725006656443,-500.0,0.00039726,120]
[336669478,1725006656452,-500.0,0.00039726,120]
[336669480,1725006656461,-500.0,0.00039726,120]
[336669482,1725006656471,-500.0,0.00039726,120]
[336669484,1725006656484,-282.82187944,0.00039726,120]
[336669486,1725006656493,-500.0,0.00039726,120]
[336669488,1725006656503,-1158.32855176,0.00039796,7]
[336669490,1725006656513,-1400.0,0.00039811,7]
[336669492,1725006656523,-2200.0,0.00039818,7]
[336669494,1725006656533,-153.56651456,0.00039881,2]
[336669496,1725006656542,-475.99533904,0.00039881,2]
[336669498,1725006656552,-500.0,0.00039899,120]
[336669500,1725006656561,-500.0,0.00039899,120]
[336669502,1725006656571,-151.0,0.000399,14]
[336669504,1725006656581,-151.0,0.000399,14]
[336669507,1725006656591,-151.0,0.000399,14]
[336669509,1725006656601,-151.0,0.000399,14]
[336669516,1725006656775,-173.65854316,0.0003992,2]
[336669519,1725006656788,-500.0,0.00039939,7]
[336669521,1725006656797,-920.2276119,0.00039957,7]
[336669523,1725006656807,-500.0,0.00039988,120]
[336669525,1725006656816,-453.33533795,0.00039999,31]
[336669527,1725006656826,-475.96216602,0.00039999,31]
[336669529,1725006656836,-485.14738191,0.00039999,31]
[336669531,1725006656846,-444.71984766,0.00039999,31]
[336669533,1725006656855,-500.0,0.00039999,31]
[336669535,1725006656864,-500.0,0.00039999,31]
[336669537,1725006656874,-500.0,0.00039999,31]
[336669539,1725006656883,-500.0,0.00039999,31]
[336669541,1725006656892,-383.87052478,0.00039999,31]
[336669543,1725006656901,-500.0,0.00039999,31]
[336669545,1725006656910,-500.0,0.00039999,31]
[336669547,1725006656919,-500.0,0.00039999,31]
[336669549,1725006656928,-500.0,0.00039999,31]
[336669551,1725006656937,-500.0,0.00039999,31]
[336669553,1725006656946,-500.0,0.00039999,31]
[336669555,1725006656956,-272.92672598,0.00039999,31]
[336669557,1725006656965,-500.0,0.00039999,31]
[336669559,1725006656976,-500.0,0.00039999,31]
[336669561,1725006656985,-500.0,0.00039999,31]
[336669563,1725006656994,-500.0,0.00039999,31]
[336669565,1725006657003,-500.0,0.00039999,31]
[336669567,1725006657012,-500.0,0.00039999,31]
[336669569,1725006657022,-500.0,0.00039999,31]
[336669571,1725006657032,-500.0,0.00039999,31]
[336669573,1725006657041,-500.0,0.00039999,31]
[336669575,1725006657050,-500.0,0.00039999,31]
[336669577,1725006657060,-500.0,0.00039999,31]
[336669579,1725006657069,-87929.31230007,0.0004,7]
[336669581,1725006657078,-1106.16757965,0.0004,5]
[336669583,1725006657087,-981.05467461,0.0004,10]
[336669585,1725006657096,-300.42,0.0004,5]
[336669586,1725006657105,-300.0,0.0004,19]
[336669588,1725006657115,-500.0,0.0004,5]
[336669590,1725006657124,-2922.849,0.0004,30]
[336669592,1725006657133,-1000.0,0.0004,120]
[336669594,1725006657143,-465.433,0.0004,120]
[336669596,1725006657153,-415.28028794,0.0004,120]
[336669598,1725006657163,-373.57952504,0.0004,40]
[336669600,1725006657172,-249.42746535,0.0004,30]
[336669602,1725006657182,-151.93753159,0.0004,30]
[336669604,1725006657192,-500.0,0.0004,2]
[336669606,1725006657202,-250.0,0.0004,7]
[336669609,1725006657212,-151.0,0.0004,14]
[336669611,1725006657222,-500.0,0.0004,5]
[336669612,1725006657232,-151.0,0.0004,14]
[336669614,1725006657241,-151.0,0.0004,14]
[336669616,1725006657250,-500.0,0.0004,120]
[336669618,1725006657259,-313.78125659,0.0004,120]
[336669620,1725006657269,-500.0,0.0004,120]
[336669622,1725006657279,-500.0,0.0004,120]
[336669624,1725006657288,-500.0,0.0004,120]
[336669626,1725006657298,-500.0,0.0004,120]
[336669628,1725006657308,-500.0,0.0004,120]
[336669630,1725006657317,-500.0,0.0004,5]
[336669632,1725006657327,-500.0,0.0004,120]
[336669634,1725006657338,-500.0,0.0004,120]
[336669636,1725006657348,-500.0,0.0004,120]
[336669638,1725006657357,-500.0,0.0004,120]
[336669640,1725006657367,-151.0,0.0004,14]
[336669643,1725006657376,-295.844192,0.0004,30]
[336669645,1725006657388,-205.156618,0.0004,14]
[336669647,1725006657397,-205.156618,0.0004,14]
[336669649,1725006657407,-155.560716,0.0004,14]
[336669651,1725006657416,-151.0,0.0004,14]
[336669653,1725006657425,-155.560716,0.0004,14]
[336669655,1725006657435,-6248.44,0.0004,8]
[336669657,1725006657444,-836.76,0.0004,120]
[336669658,1725006657453,-622.96,0.0004,120]
[336669660,1725006657463,-150.0,0.0004,2]
[336669662,1725006657472,-500.0,0.0004,120]
[336669664,1725006657482,-500.0,0.0004,120]
[336669666,1725006657491,-151.0,0.0004,14]
[336669668,1725006657501,-500.0,0.0004,120]
[336669670,1725006657510,-243.265222,0.0004,14]
[336669672,1725006657520,-151.0,0.0004,14]
[336669674,1725006657529,-151.0,0.0004,14]
[336669676,1725006657539,-500.0,0.0004,120]
[336669679,1725006657549,-500.0,0.0004,120]
[336669681,1725006657559,-228.080827,0.0004,14]
[336669683,1725006657568,-500.0,0.0004,120]
[336669685,1725006657581,-500.0,0.0004,2]
[336669686,1725006657591,-228.080827,0.0004,14]
[336669689,1725006657601,-500.0,0.0004,120]
[336669691,1725006657610,-461.127098,0.0004,14]
[336669692,1725006657620,-500.0,0.0004,120]
[336669694,1725006657630,-151.0,0.0004,14]
[336669696,1725006657642,-461.127105,0.0004,14]
[336669698,1725006657651,-748.578485,0.0004,14]
[336669700,1725006657661,-500.0,0.0004,120]
[336669702,1725006657670,-748.578485,0.0004,14]
[336669705,1725006657681,-500.0,0.0004,120]
[336669707,1725006657691,-500.0,0.0004,120]
[336669709,1725006657702,-500.0,0.0004,120]
[336669711,1725006657713,-151.0,0.0004,14]
[336669713,1725006657722,-500.0,0.0004,120]
[336669715,1725006657732,-504.26473185,0.0004,60]
[336669717,1725006657741,-21307.4158842,0.0004,4]
[336669719,1725006657750,-500.0,0.0004,120]
[336669721,1725006657761,-938.61,0.0004,120]
[336669723,1725006657771,-1018.82,0.0004,120]
[336669725,1725006657781,-500.0,0.0004,120]
[336669727,1725006657790,-500.0,0.0004,120]
[336669730,1725006657800,-500.0,0.0004,120]
[336669732,1725006657810,-500.0,0.0004,120]
[336669734,1725006657819,-500.0,0.0004,120]
[336669736,1725006657828,-2084.52,0.0004,120]
[336669738,1725006657838,-173.284743,0.0004,14]
[336669740,1725006657847,-232.058332,0.0004,14]
[336669742,1725006657857,-500.0,0.0004,120]
[336669744,1725006657866,-173.284741,0.0004,14]
[336669746,1725006657876,-500.0,0.0004,120]
[336669748,1725006657885,-259.504183,0.0004,14]
[336669749,1725006657895,-500.0,0.0004,120]
[336669751,1725006657905,-1373.0,0.0004,120]
[336669753,1725006657915,-259.504188,0.0004,14]
[336669755,1725006657924,-500.0,0.0004,120]
[336669757,1725006657934,-657.52,0.0004,120]
[336669759,1725006657943,-1026.36,0.0004,120]
[336669761,1725006657954,-553.29,0.0004,120]
[336669763,1725006657963,-446.83881332,0.0004,120]
[336669765,1725006657973,-500.0,0.0004,120]
[336669768,1725006657984,-500.0,0.0004,120]
[336669770,1725006657993,-1762.24,0.0004,120]
[336669772,1725006658002,-500.0,0.0004,120]
[336669774,1725006658012,-500.0,0.0004,120]
[336669776,1725006658021,-500.0,0.0004,120]
[336669778,1725006658031,-151.0,0.00040027,120]
[336669780,1725006658040,-200.0,0.00040075,120]
[336669782,1725006658052,-151.03,0.000401,14]
[336669784,1725006658062,-3000.0,0.00040119,10]
[336669786,1725006658072,-750.37815561,0.00040226,2]
[336669788,1725006658082,-500.0,0.00040273,120]
[336669790,1725006658091,-500.0,0.00040273,120]
[336669792,1725006658101,-6248.44,0.00040273,8]
[336669794,1725006658111,-836.76,0.00040273,120]
[336669796,1725006658120,-622.96,0.00040273,120]
[336669798,1725006658130,-500.0,0.00040273,120]
[336669800,1725006658139,-500.0,0.00040273,120]
[336669802,1725006658149,-502.02497858,0.00040273,120]
[336669804,1725006658159,-938.61,0.00040273,120]
[336669806,1725006658169,-1018.82,0.00040273,120]
[336669808,1725006658178,-2084.52,0.00040273,120]
[336669810,1725006658187,-500.0,0.00040273,120]
[336669812,1725006658196,-1373.0,0.00040273,120]
[336669814,1725006658206,-500.0,0.00040273,120]
[336669815,1725006658216,-657.52,0.00040273,120]
[336669817,1725006658225,-1026.36,0.00040273,120]
[336669819,1725006658235,-553.29,0.00040273,120]
[336669821,1725006658244,-500.0,0.00040273,120]
[336669824,1725006658254,-500.0,0.00040273,120]
[336669825,1725006658263,-1762.24,0.00040273,120]
[336669827,1725006658273,-500.0,0.00040273,120]
[336669829,1725006658283,-500.0,0.00040273,120]
[336669831,1725006658292,-500.0,0.00040273,120]
[336669833,1725006658303,-372.51,0.000403,30]
[336669835,1725006658314,-151.0,0.00040411,120]
[336669837,1725006658323,-3000.0,0.00040424,10]
[336669839,1725006658333,-151.0,0.00040537,14]
[336669841,1725006658343,-151.0,0.00040537,14]
[336669843,1725006658352,-151.0,0.00040537,14]
[336669845,1725006658361,-500.0,0.00040547,120]
[336669847,1725006658371,-500.0,0.00040547,120]
[336669849,1725006658381,-151.0,0.00040547,14]
[336669851,1725006658390,-205.156618,0.00040547,14]
[336669853,1725006658399,-205.156624,0.00040547,14]
[336669854,1725006658408,-155.560716,0.00040547,14]
[336669857,1725006658418,-151.0,0.00040547,14]
[336669859,1725006658428,-155.560716,0.00040547,14]
[336669861,1725006658437,-6248.44,0.00040547,8]
[336669863,1725006658446,-836.76,0.00040547,120]
[336669865,1725006658455,-622.96,0.00040547,120]
[336669867,1725006658464,-151.0,0.00040547,14]
[336669869,1725006658474,-151.0,0.00040547,14]
[336669871,1725006658483,-205.92057,0.00040547,14]
[336669873,1725006658493,-228.080827,0.00040547,14]
[336669875,1725006658503,-228.080827,0.00040547,14]
[336669877,1725006658514,-232.14,0.00040547,120]
[336669879,1725006658524,-151.0,0.00040547,14]
[336669881,1725006658533,-748.578485,0.00040547,14]
[336669883,1725006658544,-390.62,0.00040547,120]
[336669885,1725006658553,-748.578485,0.00040547,14]
[336669887,1725006658563,-938.61,0.00040547,120]
[336669889,1725006658573,-1018.82,0.00040547,120]
[336669891,1725006658582,-2084.52,0.00040547,120]
[336669893,1725006658591,-1373.0,0.00040547,120]
[336669895,1725006658601,-500.0,0.00040547,120]
[336669898,1725006658611,-657.52,0.00040547,120]
[336669900,1725006658626,-1026.36,0.00040547,120]
[336669902,1725006658635,-553.29,0.00040547,120]
[336669904,1725006658644,-508.3813722,0.00040547,120]
[336669906,1725006658654,-1762.24,0.00040547,120]
[336669908,1725006658665,-500.0,0.00040547,120]
[336669910,1725006658675,-500.0,0.00040547,120]
[336669912,1725006658684,-150.0,0.000407,30]
[336669914,1725006658693,-3000.0,0.00040729,10]
[336669916,1725006658703,-9297.45,0.000408,14]
[336669918,1725006658715,-500.0,0.00040821,120]
[336669920,1725006658725,-500.0,0.00040821,120]
[336669922,1725006658735,-6248.44,0.00040821,8]
[336669924,1725006658744,-836.76,0.00040821,120]
[336669926,1725006658754,-622.96,0.00040821,120]
[336669928,1725006658764,-938.61,0.00040821,120]
[336669930,1725006658775,-1018.82,0.00040821,120]
[336669932,1725006658785,-2084.52,0.00040821,120]
[336669934,1725006658794,-1373.0,0.00040821,120]
[336669936,1725006658804,-500.0,0.00040821,120]
[336669938,1725006658814,-657.52,0.00040821,120]
[336669940,1725006658823,-1026.36,0.00040821,120]
[336669942,1725006658833,-553.29,0.00040821,120]
[336669944,1725006658843,-1762.24,0.00040821,120]
[336669946,1725006658852,-500.0,0.00040821,120]
[336669948,1725006658862,-300.0,0.00041,21]
[336669951,1725006658872,-2280.0,0.00041,7]
[336669953,1725006658882,-150.0,0.00041,2]
[336669955,1725006658892,-512.0,0.00041,5]
[336669957,1725006658901,-3000.0,0.00041034,10]
[336669959,1725006658911,-151.225372,0.00041085,14]
[336669961,1725006658920,-153.881707,0.00041085,14]
[336669963,1725006658930,-170.4974709,0.00041087,37]
[336669965,1725006658939,-600.0,0.00041095,2]
[336669967,1725006658949,-600.0,0.00041095,2]
[336669969,1725006658958,-600.0,0.00041095,2]
[336669971,1725006658967,-500.96462698,0.00041095,2]
[336669973,1725006658977,-191.144174,0.00041095,14]
[336669975,1725006658986,-274.97983,0.00041095,14]
[336669977,1725006658996,-500.0,0.00041095,120]
[336669979,1725006659005,-500.0,0.00041095,120]
[336669981,1725006659015,-155.560716,0.00041095,14]
[336669983,1725006659024,-155.560722,0.00041095,14]
[336669985,1725006659034,-6248.44,0.00041095,8]